bitfinex/quotes_SOLUSD_20240620
["timestamp","ask_amount","ask_price","bid_price","bid_amount"]
[1718919464541,7.73637961,134.62,134.56,16.3589]
[1718919464542,9.3,134.61,134.56,16.3589]
[1718919466140,9.3,134.6,134.56,16.3589]
[1718919467733,7.73637961,134.62,134.56,16.3589]
[1718919467937,9.3,134.61,134.56,16.3589]
[1718919470324,9.3,134.59,134.56,16.3589]
[1718919474022,7.73637961,134.62,134.56,16.3589]
[1718919474224,29.3,134.61,134.56,25.6589]
[1718919474653,20.0,134.61,134.56,25.6589]
[1718919475919,29.3,134.61,134.56,25.6589]
[1718919480555,29.3,134.61,134.56,16.3589]
[1718919481637,9.3,134.58,134.53,16.3479]
[1718919481839,9.3,134.58,134.53,25.6479]
[1718919485161,20.0,134.61,134.53,25.6479]
[1718919485359,9.3,134.58,134.53,25.6479]
[1718919489241,9.3,134.59,134.54,9.3]
[1718919490061,25.80279347,134.61,134.54,9.3]
[1718919490262,9.3,134.59,134.54,9.3]
[1718919490963,9.3,134.58,134.53,25.6479]
[1718919491966,25.80279347,134.61,134.53,25.6479]
[1718919492141,9.3,134.58,134.53,25.6479]
[1718919496173,25.80279347,134.61,134.53,25.6479]
[1718919496374,9.3,134.58,134.53,25.6479]
[1718919497276,9.3,134.58,134.53,16.3479]
[1718919497481,9.3,134.58,134.53,25.6479]
[1718919497987,9.3,134.59,134.53,25.6479]
[1718919498273,9.3,134.59,134.53,16.3479]
[1718919498455,9.3,134.59,134.53,25.6479]
[1718919499468,9.3,134.59,134.54,10.77932538]
[1718919499653,9.3,134.59,134.54,9.3]
[1718919499984,9.3,134.59,134.53,25.6479]
[1718919510310,9.3,134.59,134.53,16.3479]
[1718919510471,9.3,134.57,134.53,16.3479]
[1718919510789,63.00279347,134.61,134.53,16.3479]
[1718919510995,7.73654634,134.6,134.53,16.3479]
[1718919511185,9.16569389,134.6,134.53,16.3479]
[1718919511371,20.0,134.59,134.53,16.3479]
[1718919513476,9.3,134.56,134.53,16.3479]
[1718919513694,9.3,134.57,134.53,16.3479]
[1718919517875,15.3802,134.57,134.48,0.8396209]
[1718919518198,9.3,134.52,134.48,0.8396209]
[1718919519903,9.3,134.51,134.48,0.8396209]
[1718919520102,9.3,134.5,134.48,0.8396209]
[1718919521876,9.3,134.49,134.44,15.2129]
[1718919522094,9.3,134.48,134.44,15.2129]
[1718919522484,9.3,134.47,134.44,15.2129]
[1718919524204,9.3,134.47,134.42,9.3]
[1718919524612,9.3,134.46,134.42,9.3]
[1718919524904,9.3,134.46,134.4,16.3187]
[1718919525101,9.3,134.46,134.41,29.3]
[1718919525915,9.3,134.45,134.4,25.6187]
[1718919526205,9.3,134.44,134.4,16.3187]
[1718919527391,9.3,134.47,134.4,16.3187]
[1718919527590,9.3,134.43,134.4,16.3187]
[1718919530288,9.3,134.43,134.34,0.8396209]
[1718919530289,9.3,134.43,134.36,15.9554]
[1718919530487,9.3,134.43,134.38,9.3]
[1718919530699,9.3,134.43,134.36,15.9554]
[1718919530906,9.3,134.43,134.38,9.3]
[1718919532589,9.3,134.44,134.36,15.9554]
[1718919532808,9.3,134.44,134.37,20.0]
[1718919533128,9.3,134.43,134.38,9.3]
[1718919533416,7.73473776,134.46,134.38,13.05569153]
[1718919533595,9.3,134.44,134.39,9.3]
[1718919534501,9.3,134.43,134.37,20.0]
[1718919534817,9.3,134.43,134.38,9.3]
[1718919536214,9.3,134.43,134.37,20.0]
[1718919536419,9.3,134.43,134.37,29.3]
[1718919537112,9.3,134.43,134.38,9.3]
[1718919539110,9.3,134.43,134.37,20.0]
[1718919539111,9.3,134.41,134.37,20.0]
[1718919540911,9.3,134.41,134.36,25.2554]
[1718919541514,51.1292,134.45,134.36,25.2554]
[1718919541515,51.1292,134.45,134.38,9.3]
[1718919541720,29.3,134.44,134.36,18.22068185]
[1718919542012,29.3,134.44,134.38,9.3]
[1718919543701,20.0,134.44,134.38,9.3]
[1718919544017,29.3,134.44,134.39,9.3]
[1718919544605,9.3,134.43,134.38,9.3]
[1718919547717,20.0,134.44,134.38,9.3]
[1718919547897,9.3,134.43,134.38,9.3]
[1718919548730,9.3,134.43,134.37,9.3]
[1718919548894,9.3,134.42,134.37,9.3]
[1718919549305,9.3,134.42,134.36,15.9554]
[1718919549306,9.3,134.42,134.36,25.2554]
[1718919550401,9.3,134.42,134.37,9.3]
[1718919550997,9.3,134.42,134.36,15.9554]
[1718919551202,9.3,134.42,134.37,9.3]
[1718919556422,9.3,134.42,134.36,15.9554]
[1718919556623,9.3,134.42,134.37,9.3]
[1718919557124,9.3,134.42,134.36,15.9554]
[1718919557425,20.0,134.44,134.37,9.3]
[1718919557607,9.3,134.42,134.37,9.3]
[1718919557930,9.3,134.41,134.32,15.7615]
[1718919558131,9.3,134.41,134.36,9.3]
[1718919558305,29.88902807,134.43,134.36,9.3]
[1718919558507,45.0,134.42,134.36,9.3]
[1718919558807,54.3,134.42,134.36,9.3]
[1718919559011,54.3,134.42,134.37,9.3]
[1718919559913,45.0,134.42,134.37,9.3]
[1718919560113,54.3,134.42,134.37,9.3]
[1718919560640,45.0,134.42,134.37,9.3]
[1718919562529,54.3,134.42,134.33,37.2]
[1718919562838,54.3,134.42,134.37,9.3]
[1718919563225,54.3,134.42,134.36,9.3]
[1718919564731,9.3,134.39,134.34,30.1396209]
[1718919564938,9.3,134.39,134.34,20.8396209]
[1718919565127,45.0,134.42,134.34,0.8396209]
[1718919565323,9.3,134.4,134.35,9.3]
[1718919565717,9.3,134.4,134.34,0.8396209]
[1718919565921,9.3,134.39,134.34,10.1396209]
[1718919566117,9.3,134.4,134.34,10.1396209]
[1718919568819,9.3,134.4,134.35,9.3]
[1718919573128,9.3,134.4,134.34,0.8396209]
[1718919573440,45.0,134.39,134.34,10.1396209]
[1718919573942,45.0,134.4,134.35,9.3]
[1718919574445,45.0,134.4,134.36,9.3]
[1718919574636,45.0,134.4,134.35,9.3]
[1718919575532,45.0,134.4,134.34,0.8396209]
[1718919575825,45.0,134.4,134.35,9.3]
[1718919576841,45.0,134.4,134.34,0.8396209]
[1718919577028,45.0,134.4,134.35,9.3]
[1718919577029,14.0625,134.36,134.35,9.3]
[1718919581252,14.0625,134.36,134.34,0.8396209]
[1718919581438,14.0625,134.36,134.35,9.3]
[1718919582551,14.0625,134.36,134.34,0.8396209]
[1718919582751,14.0625,134.36,134.35,9.3]
[1718919595664,14.0625,134.36,134.34,0.8396209]
[1718919595836,14.0625,134.36,134.35,9.3]
[1718919600163,14.0625,134.36,134.34,20.8396209]
[1718919600370,14.0625,134.36,134.35,9.3]
[1718919600864,14.0625,134.36,134.35,29.3]
[1718919608189,14.0625,134.36,134.35,20.0]
[1718919608487,14.0625,134.36,134.35,29.3]
[1718919634816,14.0625,134.36,134.35,20.0]
[1718919635126,14.0625,134.36,134.35,9.3]
[1718919635298,14.0625,134.36,134.35,29.3]
[1718919647705,14.0625,134.36,134.35,9.3]
[1718919655729,14.0625,134.36,134.34,0.8396209]
[1718919655925,14.0625,134.36,134.35,9.3]
[1718919677326,14.0625,134.36,134.34,0.8396209]
[1718919677531,14.0625,134.36,134.35,9.3]
[1718919677946,14.0625,134.36,134.34,0.8396209]
[1718919678121,14.0625,134.36,134.35,9.3]
[1718919683242,14.0625,134.36,134.34,0.8396209]
[1718919683447,14.0625,134.36,134.35,9.3]
[1718919706053,14.0625,134.36,134.34,0.8396209]
[1718919706255,14.0625,134.36,134.35,9.3]
[1718919711269,14.0625,134.36,134.34,0.8396209]
[1718919723288,14.0625,134.36,134.35,9.3]
[1718919741705,14.0625,134.36,134.35,29.3]
[1718919811571,14.0625,134.36,134.35,20.0]
[1718919811790,14.0625,134.36,134.34,20.8396209]
[1718919811980,14.0625,134.36,134.35,29.3]
[1718919814095,14.0625,134.36,134.35,20.0]
[1718919814398,14.0625,134.36,134.35,9.3]
[1718919814575,14.0625,134.36,134.35,29.3]
[1718919814774,14.0625,134.36,134.35,20.0]
[1718919814971,14.0625,134.36,134.35,29.3]
[1718919816697,14.0625,134.36,134.34,0.8396209]
[1718919816883,14.0625,134.36,134.35,9.3]
[1718919819098,14.0625,134.36,134.34,0.8396209]
[1718919819597,14.0625,134.36,134.35,9.3]
[1718919827000,14.0625,134.36,134.34,0.8396209]
[1718919827202,14.0625,134.36,134.35,9.3]
[1718919827690,14.0625,134.36,134.34,0.8396209]
[1718919827887,14.0625,134.36,134.35,9.3]
[1718919830703,14.0625,134.36,134.34,0.8396209]
[1718919830891,14.0625,134.36,134.35,9.3]
[1718919833109,14.0625,134.36,134.34,0.8396209]
[1718919833283,14.0625,134.36,134.35,9.3]
[1718919834800,14.0625,134.36,134.34,0.8396209]
[1718919835007,14.0625,134.36,134.35,9.3]
[1718919840502,14.0625,134.36,134.34,0.8396209]
[1718919840721,14.0625,134.36,134.35,9.3]
[1718919840895,14.0625,134.36,134.35,29.3]
[1718919841088,14.0625,134.36,134.35,74.3]
[1718919841303,23.1345,134.44,134.35,74.3]
[1718919841502,23.1345,134.44,134.36,65.0]
[1718919841735,23.1345,134.44,134.41,9.3]
[1718919842403,16.5172,134.44,134.36,65.0]
[1718919842727,16.5172,134.44,134.41,9.3]
[1718919843928,16.5172,134.44,134.36,65.0]
[1718919844209,16.5172,134.44,134.41,9.3]
[1718919846209,6.0256966,134.46,134.41,9.3]
[1718919846416,9.3,134.46,134.41,9.3]
[1718919846995,9.3,134.46,134.4,9.3]
[1718919848312,29.9240071,134.47,134.4,9.3]
[1718919848516,9.3,134.46,134.4,9.3]
[1718919850202,9.3,134.46,134.36,65.0]
[1718919850402,9.3,134.46,134.4,9.3]
[1718919850610,9.3,134.46,134.41,9.3]
[1718919852235,5.90190078,134.47,134.41,16.1806]
[1718919852415,7.77004426,134.49,134.42,9.3]
[1718919852732,9.3,134.47,134.42,9.3]
[1718919856121,9.3,134.46,134.41,9.3]
[1718919856629,9.3,134.46,134.37,15.604]
[1718919856630,9.3,134.45,134.4,9.3]
[1718919858126,9.3,134.46,134.41,9.3]
[1718919860028,21.8152,134.47,134.41,9.3]
[1718919860313,31.1152,134.47,134.42,9.3]
[1718919860730,13.82315531,134.49,134.41,9.3]
[1718919860934,9.3,134.47,134.42,9.3]
[1718919861148,9.3,134.48,134.43,9.3]
[1718919861437,9.3,134.48,134.38,4.06335645]
[1718919861642,9.3,134.47,134.42,9.3]
[1718919864431,31.65754983,134.5,134.42,9.3]
[1718919864642,9.3,134.47,134.42,9.3]
[1718919865420,9.3,134.47,134.41,9.3]
[1718919866643,9.3,134.47,134.37,37.994]
[1718919866822,45.0,134.49,134.42,9.3]
[1718919867022,9.3,134.47,134.42,9.3]
[1718919868042,45.0,134.49,134.42,9.3]
[1718919868220,9.3,134.47,134.42,9.3]
[1718919868419,45.0,134.49,134.42,9.3]
[1718919868621,9.3,134.47,134.42,9.3]
[1718919869335,9.3,134.48,134.42,9.3]
[1718919869522,9.3,134.47,134.42,9.3]
[1718919880859,31.65754983,134.5,134.42,9.3]
[1718919881060,9.3,134.47,134.42,9.3]
[1718919883340,9.3,134.47,134.41,25.1695]
[1718919883963,9.3,134.47,134.42,9.3]
[1718919885743,31.65754983,134.5,134.42,9.3]
[1718919885945,9.3,134.48,134.42,9.3]
[1718919888256,9.3,134.47,134.42,9.3]
[1718919888652,9.3,134.48,134.42,9.3]
[1718919890175,31.65754983,134.5,134.42,9.3]
[1718919890385,9.3,134.48,134.42,9.3]
[1718919892679,9.3,134.48,134.43,9.3]
[1718919900571,15.23754983,134.5,134.42,14.24021575]
[1718919900766,9.3,134.49,134.43,9.3]
[1718919901868,9.3,134.48,134.43,9.3]
[1718919902277,9.3,134.48,134.42,9.3]
[1718919902875,15.23754983,134.5,134.41,15.8695]
[1718919903078,9.3,134.48,134.42,29.3]
[1718919903470,9.3,134.49,134.43,9.3]
[1718919904882,9.3,134.49,134.42,20.0]
[1718919905187,9.3,134.49,134.43,9.3]
[1718919909995,9.3,134.48,134.43,9.3]
[1718919910188,5.96215851,134.5,134.43,9.3]
[1718919910488,17.04460078,134.52,134.43,9.3]
[1718919910489,9.3,134.48,134.43,9.3]
[1718919912702,9.3,134.48,134.42,29.3]
[1718919915275,9.3,134.49,134.42,29.3]
[1718919917879,9.3,134.5,134.42,29.3]
[1718919919874,9.3,134.49,134.42,29.3]
[1718919924703,9.3,134.5,134.42,29.3]
[1718919932307,9.3,134.5,134.43,15.7852]
[1718919932721,9.3,134.5,134.43,25.0852]
[1718919934205,9.3,134.5,134.43,31.3732]
[1718919934796,9.3,134.5,134.44,16.4833]
[1718919937912,15.26840611,134.52,134.44,16.4833]
[1718919938089,9.3,134.5,134.44,25.7833]
[1718919942997,9.3,134.5,134.44,16.4833]
[1718919943314,9.3,134.49,134.44,16.4833]
[1718919943520,9.3,134.5,134.44,16.4833]
[1718919955915,9.3,134.51,134.44,16.4833]
[1718919975856,9.3,134.5,134.44,25.7833]
[1718919976935,9.3,134.5,134.44,16.4833]
[1718919979149,15.26840611,134.52,134.46,15.5637]
[1718919979315,9.3,134.5,134.46,15.5637]
[1718919986223,15.26840611,134.52,134.46,15.5637]
[1718919986425,9.3,134.5,134.46,15.5637]
[1718919992746,9.3,134.51,134.46,15.5637]
[1718919995554,9.3,134.5,134.46,15.5637]
[1718920000568,9.3,134.51,134.46,15.5637]
[1718920004837,9.3,134.5,134.46,15.5637]
[1718920010431,9.3,134.49,134.46,15.5637]
[1718920011153,15.2673718,134.53,134.46,15.5637]
[1718920011333,9.3,134.5,134.46,15.5637]
[1718920019063,9.3,134.51,134.46,15.5637]
[1718920024156,9.3,134.47,134.42,15.7914]
[1718920024849,9.3,134.47,134.42,25.0914]
[1718920025464,9.3,134.47,134.42,15.7914]
[1718920026058,9.3,134.47,134.42,25.0914]
[1718920028364,9.3,134.47,134.42,15.7914]
[1718920028769,9.3,134.47,134.42,25.0914]
[1718920031174,9.3,134.48,134.43,9.3]
[1718920031369,9.3,134.49,134.44,34.76814684]
[1718920031571,9.3,134.49,134.44,32.4424]
[1718920033077,2.45975866,134.51,134.44,32.4424]
[1718920033378,9.3,134.5,134.44,32.4424]
[1718920034168,9.3,134.49,134.44,32.4424]
[1718920038055,9.3,134.5,134.44,32.4424]
[1718920038457,9.3,134.5,134.44,23.1424]
[1718920038874,9.3,134.5,134.44,32.4424]
[1718920039056,9.3,134.49,134.44,32.4424]
[1718920039263,9.3,134.49,134.44,23.1424]
[1718920045765,9.3,134.5,134.44,32.4424]
[1718920047680,9.3,134.5,134.44,23.1424]
[1718920047979,9.3,134.48,134.44,23.1424]
[1718920048197,2.45975866,134.49,134.44,23.1424]
[1718920048680,9.3,134.48,134.44,23.1424]
[1718920054092,2.45975866,134.49,134.44,23.1424]
[1718920054277,9.3,134.48,134.44,23.1424]
[1718920056284,2.45975866,134.49,134.44,23.1424]
[1718920056484,9.3,134.48,134.44,23.1424]
[1718920062007,9.3,134.47,134.44,16.6366]
[1718920063783,8.2872128,134.49,134.44,16.6366]
[1718920064003,9.3,134.47,134.44,16.6366]
[1718920069411,9.3,134.47,134.39,15.807]
[1718920069615,9.3,134.45,134.4,9.3]
[1718920069914,9.3,134.45,134.39,15.807]
[1718920070109,9.3,134.45,134.4,9.3]
[1718920070499,9.3,134.45,134.39,15.807]
[1718920070695,9.3,134.45,134.4,9.3]
[1718920070903,9.3,134.44,134.39,15.807]
[1718920071114,9.3,134.44,134.39,25.107]
[1718920071313,8.2872128,134.49,134.39,25.107]
[1718920071498,9.3,134.45,134.39,25.107]
[1718920071909,8.2872128,134.49,134.39,25.107]
[1718920072113,9.3,134.45,134.4,9.3]
[1718920073018,9.3,134.45,134.39,15.807]
[1718920073207,9.3,134.45,134.4,9.3]
[1718920074818,9.3,134.45,134.39,15.807]
[1718920075004,9.3,134.45,134.4,9.3]
[1718920076318,9.3,134.45,134.39,15.807]
[1718920076519,9.3,134.44,134.39,25.107]
[1718920078606,9.3,134.44,134.39,15.807]
[1718920079296,9.3,134.43,134.39,15.807]
[1718920079910,9.3,134.44,134.39,15.807]
[1718920080122,9.3,134.44,134.39,25.107]
[1718920080425,9.3,134.44,134.39,15.807]
[1718920081825,9.3,134.47,134.39,15.807]
[1718920082123,45.0,134.46,134.39,15.807]
[1718920083619,22.8936,134.45,134.34,0.8396209]
[1718920083827,9.3,134.41,134.34,20.8396209]
[1718920084133,9.3,134.41,134.34,0.8396209]
[1718920084301,9.3,134.41,134.36,9.3]
[1718920084917,9.3,134.41,134.34,0.8396209]
[1718920085120,9.3,134.4,134.34,10.1396209]
[1718920085306,30.0,134.39,134.34,10.1396209]
[1718920085715,30.0,134.39,134.35,9.3]
[1718920085922,30.0,134.39,134.34,0.8396209]
[1718920086219,39.3,134.39,134.34,10.1396209]
[1718920086609,39.3,134.39,134.34,0.8396209]
[1718920086829,30.0,134.39,134.34,0.8396209]
[1718920087011,9.3,134.38,134.34,0.8396209]
[1718920087208,39.3,134.39,134.34,0.8396209]
[1718920087430,30.0,134.39,134.34,0.8396209]
[1718920087730,9.3,134.38,134.34,0.8396209]
[1718920090132,30.0,134.39,134.34,0.8396209]
[1718920090321,9.3,134.37,134.34,0.8396209]
[1718920090717,45.0,134.38,134.34,0.8396209]
[1718920091217,9.3,134.37,134.34,0.8396209]
[1718920091421,54.3,134.38,134.34,0.8396209]
[1718920092818,9.3,134.37,134.34,0.8396209]
[1718920093620,45.0,134.38,134.34,0.8396209]
[1718920094022,9.3,134.37,134.34,0.8396209]
[1718920094208,15.4468,134.35,134.34,0.8396209]
[1718920094408,11.8881,134.32,134.26,0.9032903]
[1718920094633,11.8881,134.32,134.18,9.3]
[1718920094939,74.2427244,134.31,134.18,9.3]
[1718920095311,74.2427244,134.31,134.12,37.2]
[1718920095312,44.78,134.27,134.06,22.38]
[1718920095514,44.78,134.27,134.05,9.979991]
[1718920095515,9.3,134.14,134.09,9.3]
[1718920095731,17.34495689,134.19,134.11,9.3]
[1718920095936,15.5038,134.23,134.12,9.3]
[1718920096229,65.0,134.22,134.08,16.5687]
[1718920096435,9.3,134.18,134.12,9.3]
[1718920096815,9.3,134.18,134.13,9.3]
[1718920097121,9.3,134.19,134.13,9.3]
[1718920097334,9.3,134.18,134.12,9.3]
[1718920097848,9.3,134.19,134.13,9.3]
[1718920099245,9.3,134.19,134.14,9.3]
[1718920099843,45.0,134.22,134.14,9.3]
[1718920100046,9.3,134.19,134.14,9.3]
[1718920100342,9.3,134.19,134.09,22.38]
[1718920100343,9.3,134.19,134.13,9.3]
[1718920100723,9.3,134.2,134.14,9.3]
[1718920102030,9.3,134.2,134.13,9.3]
[1718920104440,11.7251408,134.22,134.09,28.6698]
[1718920104650,21.0251408,134.22,134.12,9.3]
[1718920104953,9.3,134.21,134.16,9.3]
[1718920105238,9.3,134.21,134.15,9.3]
[1718920107030,9.3,134.21,134.13,20.0]
[1718920107230,9.3,134.21,134.15,9.3]
[1718920108130,11.7251408,134.22,134.13,20.0]
[1718920108328,21.0251408,134.22,134.15,9.3]
[1718920108531,21.0251408,134.22,134.16,9.3]
[1718920108738,21.0251408,134.22,134.12,79.58]
[1718920108938,21.0251408,134.22,134.13,45.0]
[1718920109144,9.3,134.21,134.15,9.3]
[1718920109350,21.0251408,134.22,134.16,9.3]
[1718920110157,9.3,134.21,134.15,9.3]
[1718920110452,21.0251408,134.22,134.16,9.3]
[1718920110954,21.0251408,134.22,134.15,9.3]
[1718920111155,11.7251408,134.22,134.13,45.0]
[1718920111456,11.7251408,134.22,134.16,9.3]
[1718920111856,11.7251408,134.22,134.17,9.3]
[1718920112557,11.7251408,134.22,134.14,20.0]
[1718920112558,11.7251408,134.22,134.16,9.3]
[1718920113139,11.7251408,134.22,134.14,20.0]
[1718920113343,11.7251408,134.22,134.15,9.3]
[1718920113543,21.0251408,134.22,134.15,9.3]
[1718920114156,21.0251408,134.22,134.16,9.3]
[1718920114956,11.7251408,134.22,134.16,9.3]
[1718920115158,11.7251408,134.22,134.15,9.3]
[1718920118747,11.7251408,134.22,134.14,20.0]
[1718920118946,11.7251408,134.22,134.15,9.3]
[1718920120044,9.3,134.22,134.14,20.0]
[1718920120241,9.3,134.22,134.16,9.3]
[1718920120444,9.3,134.22,134.14,20.0]
[1718920120748,9.3,134.22,134.16,9.3]
[1718920121161,21.0251408,134.23,134.16,9.3]
[1718920121369,9.3,134.22,134.16,9.3]
[1718920122456,9.3,134.22,134.17,9.3]
[1718920124849,21.0251408,134.23,134.16,9.3]
[1718920125158,11.7251408,134.23,134.16,9.3]
[1718920125369,5.9615423,134.24,134.18,9.3]
[1718920125370,9.3,134.24,134.18,9.3]
[1718920125565,9.3,134.24,134.19,9.3]
[1718920126149,9.3,134.24,134.18,9.3]
[1718920127471,9.3,134.24,134.15,16.4435]
[1718920127674,9.3,134.23,134.18,9.3]
[1718920127971,9.3,134.24,134.18,9.3]
[1718920128269,9.3,134.23,134.17,9.3]
[1718920128570,9.3,134.24,134.18,20.0]
[1718920129771,9.3,134.24,134.16,29.3]
[1718920129967,22.7294,134.23,134.16,20.0]
[1718920130154,9.3,134.2,134.14,9.3]
[1718920131160,9.3,134.21,134.15,9.3]
[1718920132877,25.25999878,134.23,134.15,9.3]
[1718920133079,54.3,134.22,134.16,9.3]
[1718920133480,54.3,134.22,134.15,9.3]
[1718920133694,54.3,134.22,134.12,37.2]
[1718920133864,54.3,134.22,134.15,9.3]
[1718920134360,54.3,134.22,134.14,9.3]
[1718920134856,9.3,134.21,134.14,9.3]
[1718920135060,9.3,134.21,134.15,9.3]
[1718920136168,54.3,134.22,134.15,9.3]
[1718920136880,9.3,134.21,134.13,20.0]
[1718920137082,54.3,134.22,134.14,9.3]
[1718920137471,54.3,134.22,134.11,20.0]
[1718920137672,54.3,134.22,134.14,9.3]
[1718920137873,54.3,134.22,134.11,20.0]
[1718920138070,54.3,134.22,134.13,9.3]
[1718920139885,54.3,134.22,134.11,20.0]
[1718920140087,30.0,134.19,134.14,9.3]
[1718920142368,30.0,134.19,134.11,20.0]
[1718920142561,30.0,134.19,134.14,9.3]
[1718920142784,39.3,134.19,134.14,9.3]
[1718920143189,30.0,134.19,134.14,9.3]
[1718920151587,30.0,134.19,134.12,9.3]
[1718920151799,30.0,134.19,134.13,29.3]
[1718920158199,30.0,134.19,134.14,9.3]
[1718920158500,30.0,134.19,134.15,9.3]
[1718920160186,30.0,134.19,134.14,9.3]
[1718920161604,30.0,134.19,134.13,20.0]
[1718920161902,30.0,134.19,134.14,9.3]
[1718920162400,39.3,134.19,134.13,9.3]
[1718920165503,30.0,134.19,134.13,9.3]
[1718920170109,30.0,134.19,134.11,65.0]
[1718920170310,30.0,134.19,134.13,9.3]
[1718920175801,30.0,134.19,134.11,65.0]
[1718920175997,30.0,134.19,134.13,9.3]
[1718920179828,39.3,134.19,134.13,9.3]
[1718920181928,30.0,134.19,134.13,9.3]
[1718920182106,39.3,134.19,134.13,9.3]
[1718920183132,39.3,134.19,134.11,65.0]
[1718920183133,30.8581,134.18,134.12,9.3]
[1718920183324,21.5581,134.18,134.12,9.3]
[1718920183521,21.5581,134.18,134.11,20.0]
[1718920183826,21.5581,134.18,134.11,9.3]
[1718920184029,21.5581,134.18,134.12,9.3]
[1718920184229,30.8581,134.18,134.13,9.3]
[1718920184450,30.0,134.17,134.13,9.3]
[1718920184929,30.0,134.17,134.12,9.3]
[1718920188432,30.0,134.17,134.13,9.3]
[1718920190228,30.0,134.17,134.07,43.2196209]
[1718920190450,39.3,134.17,134.11,9.3]
[1718920190952,39.3,134.17,134.07,43.2196209]
[1718920191138,39.3,134.17,134.11,9.3]
[1718920191332,30.0,134.17,134.11,9.3]
[1718920191536,39.3,134.17,134.11,9.3]
[1718920192356,30.0,134.17,134.07,53.1996119]
[1718920192530,30.0,134.17,134.12,9.3]
[1718920192851,30.0,134.17,134.11,9.3]
[1718920192852,39.3,134.17,134.11,9.3]
[1718920193939,30.0,134.17,134.12,9.3]
[1718920194636,30.0,134.17,134.08,67.38]
[1718920194828,30.0,134.17,134.12,9.3]
[1718920196730,30.0,134.17,134.09,20.0]
[1718920196934,30.0,134.17,134.12,9.3]
[1718920197334,39.3,134.17,134.12,9.3]
[1718920200242,30.0,134.17,134.12,9.3]
[1718920200631,39.3,134.17,134.09,20.0]
[1718920200947,39.3,134.17,134.11,9.3]
[1718920201149,39.3,134.17,134.12,29.3]
[1718920201354,39.3,134.17,134.11,9.3]
[1718920201555,39.3,134.17,134.12,20.0]
[1718920202954,39.3,134.17,134.11,9.3]
[1718920203856,30.0,134.17,134.11,9.3]
[1718920204063,39.3,134.17,134.11,9.3]
[1718920204447,39.3,134.17,134.09,20.0]
[1718920204655,39.3,134.17,134.11,9.3]
[1718920208570,30.0,134.17,134.11,9.3]
[1718920208860,39.3,134.17,134.11,9.3]
[1718920209562,39.3,134.17,134.09,20.0]